Cogmind - Beta 15 @@@ ROGUE MODE // 2025.05.26 @ 21:40:34 Player: Jack Result: Self-destructed Performance ------------- Evolutions (3) 1500 Regions Visited (6) 1200 Robots Destroyed (23) 115 Value Destroyed (334) 334 Prototype IDs (26) 520 Alien Tech Used (0) 0 Bonus (333) 333 TOTAL SCORE: 4002 Bonus ------- Follower Combat Kills 33 Aligned with FarCom 300 Cogmind --------- Core Integrity 208/700 Matter 300/300 Energy 99/100 System Corruption 9% Temperature Cool (0) Movement Core (50) Location -7/Factory Parts ------- > --- POWER (1) -------- (None) > --- PROPULSION (2) --- (None) > --- UTILITY (8) ------ Improved Signal Interpreter > --- WEAPON (2) ------- Power Maul > --- INVENTORY (5) ---- Improved Sensor Array Experimental Sensor Array Supersonic Drone Bay (1/1) Arc Projector Rocket Launcher Peak State ------------ > --- POWER ------------ (None) > --- PROPULSION ------- Flight Unit Flight Unit > --- UTILITY ---------- Supersonic Drone Bay > --- WEAPON ----------- Firepult > --- INVENTORY -------- Experimental Sensor Array Improved Terrain Scanner Seismic Detector Rocket Launcher Rocket Launcher [Rating: 31] Favorites ----------- Power Micro Nuclear Core Engine Light Ion Engine Power Core Micro Nuclear Core Propulsion Flight Unit Flight Unit Flight Unit Utility Seismic Detector Device Seismic Detector Processor Improved Signal Interpreter Hackware Authchip [Processor] Weapon Power Maul Energy Gun EM Pulse Gun Energy Cannon Firepult Launcher Rocket Launcher Special Weapon Mining Laser Impact Weapon Power Maul Special Melee Weapon Datajack Build | -11 -10 -10 -10 -9 -8 -7 ------- Run | Yrd Mat Min Exi Min Mat Fac Slots Evolved 6 | . . . . . 4 2 Power . | . . . . . . . Propulsion . | . . . . . . . Utility 6 | . . . . . 4 2 Weapon . | . . . . . . . Parts Attached 26 | 1 4 . 2 2 1 16 Power 2 | . . . . . . 2 Engine 1 | . . . . . . 1 Core 1 | . . . . . . 1 Reactor . | . . . . . . . Propulsion 5 | . 2 . . . 1 2 Treads . | . . . . . . . Leg . | . . . . . . . Wheel . | . . . . . . . Hover . | . . . . . . . Flight 5 | . 2 . . . 1 2 Utility 7 | . . . 1 1 . 5 Device 5 | . . . 1 1 . 3 Storage . | . . . . . . . Processor 1 | . . . . . . 1 Hackware 1 | . . . . . . 1 Protection . | . . . . . . . Artifact . | . . . . . . . Weapon 12 | 1 2 . 1 1 . 7 Energy Gun 4 | 1 1 . . . . 2 Energy Cannon 3 | . . . 1 . . 2 Ballistic Gun . | . . . . . . . Ballistic Cannon . | . . . . . . . Launcher 2 | . 1 . . . . 1 Special Weapon 1 | . . . . 1 . . Impact Weapon 1 | . . . . . . 1 Slashing Weapon . | . . . . . . . Piercing Weapon . | . . . . . . . Special Melee Weapon 1 | . . . . . . 1 Unidentified Prototypes 3 | . . . . . . 3 Corrupted Parts 2 | . 1 . . . . 1 System Corruption 3 | . 1 . . . . 2 Parts Lost 5 | . . . . . . 5 Power 2 | . . . . . . 2 Propulsion 2 | . . . . . . 2 Utility 1 | . . . . . . 1 Weapon . | . . . . . . . Highest Loss Streak 4 | . . . . . . 4 To Critical Strikes . | . . . . . . . Average Backups 4 | . 2 4 4 5 5 4 Power . | . . . . . . . Propulsion . | . . 1 . . . . Utility 2 | . 2 2 3 3 4 3 Weapon 1 | . . 1 1 1 1 1 Tool/Special . | . . . . . . . Unused Backups 2 | . . . . . . 2 Power . | . . . . . . . Propulsion . | . . . . . . . Utility 2 | . . . . . . 2 Weapon . | . . . . . . . Tool/Special . | . . . . . . . Average Slot Usage (%) 42 | . 22 28 51 52 36 40 Core 1 | . . . . . . 2 Flight 17 | . 5 14 25 28 18 13 Device 8 | . . . 11 12 9 8 Processor 1 | . . . . . . 3 Energy Cannon 3 | . . . 11 . . . Launcher 2 | . 7 14 2 12 9 . Impact Weapon 2 | . . . . . . 4 Peak Build Rating 31 | 1 6 4 31 13 9 31 Average Rating 17 | . 2 3 26 7 8 17 On Entrance 7 | . 1 3 4 31 7 9 Naked Turns . | . . . . . . . Heaviest Build 23 | 2 7 4 23 7 6 15 Greatest Support 10 | 3 4 4 8 8 9 10 Greatest Overweight (x) 2 | . 2 . 2 . . 1 Average Overweight (x) . | . . . 1 . . . Largest Inventory Capacity 5 | 5 5 5 5 5 5 5 Average Capacity 5 | 5 5 5 5 5 5 5 Most Carried 5 | 2 4 5 5 5 5 5 Average Carried 4 | . 3 4 4 4 5 4 Final Capacity 5 | 5 5 5 5 5 5 5 Final Carried 5 | 2 4 5 5 5 5 5 Class Distribution -------------------- 69% | Mutant 30% | Sprinter Dominant Class ---------------- Mutant | -10/Materials Mutant | -10/Mines Mutant | -10/Exiles Mutant | -9/Mines Mutant | -8/Materials Sprinter | -7/Factory Resources | -11 -10 -10 -10 -9 -8 -7 ----------- Run | Yrd Mat Min Exi Min Mat Fac Matter Collected 695 | 111 20 109 . 50 . 405 Remotely . | . . . . . . . Salvage Created 624 | 162 39 . . . . 423 Parts 26 | 11 5 . . . . 10 Haulers Intercepted . | . . . . . . . Recyclers Shooed . | . . . . . . . Parts Field Recycled . | . . . . . . . Retrieved Matter . | . . . . . . . Parts Self-Destructed . | . . . . . . . Prevented . | . . . . . . . Kills | -11 -10 -10 -10 -9 -8 -7 ------- Run | Yrd Mat Min Exi Min Mat Fac Combat Hostiles Destroyed 5 | . 3 . . . . 2 Melee 2 | . . . . . . 2 Guns 1 | . 1 . . . . . AOE 2 | . 2 . . . . . Classes Destroyed 8 | 2 2 . . . . 4 Worker 2 | . . . . . . 2 Builder 7 | . . . . . . 7 Tunneler 4 | 4 . . . . . . Recycler 3 | 1 . . . . . 2 Operator 1 | . 1 . . . . . Watcher 1 | . . . . . . 1 Swarmer 3 | . 3 . . . . . Programmer 2 | . . . . . . 2 Best Kill Streak 3 | 3 3 . . . . 3 Combat Bots Only 3 | . 3 . . . . 1 Max Kills in Single Turn 2 | 1 2 . . . . 1 Gunslinging . | . . . . . . . Exploded 2 | . 2 . . . . . Melee 1 | . . . . . . 1 Uniques/NPCs Destroyed . | . . . . . . . Combat | -11 -10 -10 -10 -9 -8 -7 -------- Run | Yrd Mat Min Exi Min Mat Fac Hostile Shots Fired 102 | . 9 . . . 10 83 Missed 44 | . 3 . . . 7 34 Hits 58 | . 6 . . . 3 49 Projectile 58 | . 6 . . . 3 49 AOE 1 | . . . . . . 1 Critical Strikes 4 | . . . . . . 4 Damage Taken 956 | 12 70 . . . 43 831 Core 559 | . 38 . . . 29 492 Absorbed by Shields . | . . . . . . . Regen/Repaired (Parts) 6 | . . . . . . 6 Core Remaining (%) 92 | 100 . . . 84 94 . Volleys Fired 36 | 13 10 . . 1 . 12 Largest 2 | 1 2 . . 1 . 1 Hottest 100 | 40 78 . . 100 . 80 Shots Fired 37 | 13 11 . . 1 . 12 Gun 23 | 13 10 . . . . . Cannon 4 | . . . . . . 4 Launcher 9 | . 1 . . . . 8 Special 1 | . . . . 1 . . Kinetic . | . . . . . . . Thermal 5 | . . . . 1 . 4 Explosive 9 | . 1 . . . . 8 Electromagnetic 23 | 13 10 . . . . . Robot Hit Streak 9 | 8 9 . . 2 . 1 Robot Miss Streak 2 | 1 2 . . . . 1 Penetration Max . | . . . . . . . Secondary Targets . | . . . . . . . Shots Hit Robots 40 | 11 6 . . 1 . 22 Core Hits 12 | 5 4 . . . . 3 Critical Kills 2 | . . . . . . 2 Critical Parts Destroyed 7 | . . . . . . 7 Critical Strikes 9 | . . . . . . 9 Smash 9 | . . . . . . 9 Melee Attacks 71 | . . . . . . 71 Impact 70 | . . . . . . 70 Slashing . | . . . . . . . Piercing . | . . . . . . . Sneak Attacks 11 | . . . . . . 11 Combat Hostiles . | . . . . . . . Follow-up Attacks . | . . . . . . . Damage Inflicted 2031 | 230 259 . . 24 . 1518 Guns 235 | 148 87 . . . . . Cannons 79 | . . . . . . 79 Explosions 254 | 82 172 . . . . . Melee 1439 | . . . . . . 1439 Ramming . | . . . . . . . Kinetic . | . . . . . . . Thermal 185 | 82 . . . 24 . 79 Explosive 172 | . 172 . . . . . Electromagnetic 235 | 148 87 . . . . . Impact 1439 | . . . . . . 1439 Slashing . | . . . . . . . Piercing . | . . . . . . . Highest Corruption 9 | . 1 1 1 1 . 9 Average Corruption 1 | . 1 1 1 1 . 2 Corruption Purged . | . . . . . . . Corruption Blocked . | . . . . . . . Effects 21 | . . . 4 . . 17 Message Errors 4 | . . . . . . 4 Matter Fused 5 | . . . 1 . . 4 Heat Flow Errors 2 | . . . . . . 2 Energy Discharges 6 | . . . 3 . . 3 Data Loss (minor) 2 | . . . . . . 2 Data Loss (major) 1 | . . . . . . 1 Alerts 1 | . . . . . . 1 Overload Shots . | . . . . . . . Overflow Damage 895 | . . . . . . 895 Projectiles . | . . . . . . . Explosions . | . . . . . . . Melee 895 | . . . . . . 895 Knockbacks 6 | . . . . . . 6 Impact 6 | . . . . . . 6 Kinetic . | . . . . . . . Secondary . | . . . . . . . Self-Inflicted Damage 41 | 12 29 . . . . . Shots 2 | 1 1 . . . . . Rammed . | . . . . . . . Targets Rammed . | . . . . . . . Kicked . | . . . . . . . Crushed . | . . . . . . . Highest Temperature 198 | 15 19 . . 10 . 198 Average Temperature 44 | 8 8 . . 7 . 69 Received Heat Transfer 324 | . . . . . 18 306 Siege Activations . | . . . . . . . Martial Activations . | . . . . . . . Shielding Activations . | . . . . . . . Robots Disrupted . | . . . . . . . Combat Hostiles . | . . . . . . . Robots Corrupted 6 | . . . . . . 6 Combat Hostiles . | . . . . . . . Parts Fried 14 | 2 . . . . . 12 Impact Corruptions 32 | . . . . . . 32 Robots Melted . | . . . . . . . Combat Hostiles . | . . . . . . . Parts Melted 1 | 1 . . . . . . Heat Transferred 287 | 100 . . . 50 . 137 Parts Sabotaged . | . . . . . . . Parts Stolen . | . . . . . . . Parts Stripped . | . . . . . . . Power Chain Reactions 2 | 2 . . . . . . Alert | -11 -10 -10 -10 -9 -8 -7 ------- Run | Yrd Mat Min Exi Min Mat Fac Maximum Alert Level . | . . . . . . . Low Security (%) 100 | 100 100 100 . 100 100 100 Level 1 . | . . . . . . . Level 2 . | . . . . . . . Level 3 . | . . . . . . . Level 4 . | . . . . . . . Level 5 . | . . . . . . . High Security . | . . . . . . . Max Security . | . . . . . . . Peak Influence 142 | 15 75 17 . . 45 142 Initial 17 | . 9 17 . . . 6 Average 30 | 3 30 3 . . 17 36 Influence Increases 680 | 25 80 . . . 45 530 Destroy 0b10 Robot/C 120 | . 60 . . . 20 40 Destroy 0b10 Robot/NC 90 | 25 5 . . . . 60 Destroy Leader 42 | . 10 . . . 10 22 Allied During Kill 2 | . . . . . 2 . Successful Hack 13 | . . . . . 13 . Disable Machine 90 | . . . . . . 90 Destroy Structure 68 | . 5 . . . . 63 Partial Spotted 75 | . . . . . . 75 Lose Combat Pursuer 180 | . . . . . . 180 Influence Decreases 538 | 10 50 45 . . 30 403 Entered New Map 43 | . 6 28 . . . 9 Time Decay 425 | 10 44 17 . . 10 344 Lost Part 50 | . . . . . . 50 Lost Ally 20 | . . . . . 20 . Squads Dispatched 12 | . 1 . . . 2 9 Investigation 4 | . . . . . 1 3 Extermination 3 | . . . . . . 3 Reinforcement 5 | . 1 . . . 1 3 Assault . | . . . . . . . Garrison . | . . . . . . . Intercept . | . . . . . . . Searches Triggered . | . . . . . . . Construction Impeded 1 | . . . . . . 1 Haulers Reinforced . | . . . . . . . Active Scanning Responses . | . . . . . . . Cargo Convoy Interrupts . | . . . . . . . Stealth | -11 -10 -10 -10 -9 -8 -7 --------- Run | Yrd Mat Min Exi Min Mat Fac Distress Signals 5 | . . . . . 1 4 Communications Jammed . | . . . . . . . Distress Signals . | . . . . . . . Times Spotted 44 | . 4 1 . . 9 30 Peak Tracking Total 8 | . 3 1 . . 6 8 Tactical Retreats 8 | . . . . . . 8 Traps | -11 -10 -10 -10 -9 -8 -7 ------- Run | Yrd Mat Min Exi Min Mat Fac Traps Triggered 5 | . . . . . . 5 Indirectly . | . . . . . . . Trap Hack Attempts . | . . . . . . . Triggered . | . . . . . . . Disarmed . | . . . . . . . Reprogrammed . | . . . . . . . Reused . | . . . . . . . Traps Extracted . | . . . . . . . Installed . | . . . . . . . Triggered . | . . . . . . . Machines | -11 -10 -10 -10 -9 -8 -7 ---------- Run | Yrd Mat Min Exi Min Mat Fac Machines Disabled 6 | . . . . . . 6 Max in Single Turn 4 | . . . . . . 4 Machines Repaired . | . . . . . . . Machines Dismantled . | . . . . . . . Machines Sabotaged . | . . . . . . . Overloaded Fab Kills . | . . . . . . . Hacking | -11 -10 -10 -10 -9 -8 -7 --------- Run | Yrd Mat Min Exi Min Mat Fac Machines Accessed 8 | . . . 2 . 1 5 Terminals 3 | . . . . . 1 2 Fabricators 2 | . . . . . . 2 Repair Stations 1 | . . . . . . 1 Recycling Units . | . . . . . . . Scanalyzers . | . . . . . . . Garrison Access . | . . . . . . . Total Hacks 40 | . . . 24 . 3 13 Successful 32 | . . . 24 . 2 6 Failed 8 | . . . . . 1 7 Catastrophic 3 | . . . . . . 3 Database Lockouts . | . . . . . . . Manual 9 | . . . 1 . 3 5 Terminals 6 | . . . . . 3 3 Fabricators 9 | . . . . . . 9 Repair Stations 1 | . . . . . . 1 Recycling Units . | . . . . . . . Scanalyzers . | . . . . . . . Garrison Access . | . . . . . . . Terminal Hacks 25 | . . . 24 . 1 . Record 23 | . . . 23 . . . Part Schematic 1 | . . . . . 1 . Proto ID Catalog 1 | . . . 1 . . . Fabricator Hacks 4 | . . . . . . 4 Network Status 1 | . . . . . . 1 Load Schematic 2 | . . . . . . 2 Build 1 | . . . . . . 1 Repair Station Hacks . | . . . . . . . Recycling Unit Hacks . | . . . . . . . Scanalyzer . | . . . . . . . Garrison Access Hacks . | . . . . . . . Unauthorized Hacks 3 | . . . . . 1 2 Terminals 1 | . . . . . 1 . Assimilate 1 | . . . . . 1 . Fabricators 1 | . . . . . . 1 Recompile 1 | . . . . . . 1 Repair Stations 1 | . . . . . . 1 Patch 1 | . . . . . . 1 Recycling Units . | . . . . . . . Scanalyzers . | . . . . . . . Garrison Access . | . . . . . . . Data Cores Recovered 1 | . 1 . . . . . Used . | . . . . . . . Hacking Detections 4 | . . . . . 1 3 Full Trace Events 2 | . . . . . 1 1 Feedback Events . | . . . . . . . Feedback Blocked . | . . . . . . . Robot Schematics Acquired . | . . . . . . . Robots Built . | . . . . . . . Authchips . | . . . . . . . Time . | . . . . . . . Total Robot Build Rating . | . . . . . . . Part Schematics Acquired 1 | . . . . . 1 . Parts Built 1 | . . . . . . 1 Authchips 1 | . . . . . . 1 Time 24 | . . . . . . 24 Total Part Build Rating 3 | . . . . . . 3 Parts Repaired . | . . . . . . . Time . | . . . . . . . Parts Recycled . | . . . . . . . Recycled Matter . | . . . . . . . Retrieved Matter . | . . . . . . . Retrieved Components . | . . . . . . . Parts Scanalyzed . | . . . . . . . Part Schematics Acquired . | . . . . . . . Parts Damaged . | . . . . . . . Bothacking | -11 -10 -10 -10 -9 -8 -7 ------------ Run | Yrd Mat Min Exi Min Mat Fac Used RIF Installer . | . . . . . . . Robots Hacked 1 | . . . . . . 1 Non-combat 1 | . . . . . . 1 Combat . | . . . . . . . Robot Hacks Applied 1 | . . . . . . 1 find_chute 1 | . . . . . . 1 Relay Couplers Released . | . . . . . . . Fabnet Peak Effective % . | . . . . . . . Robots Rewired . | . . . . . . . Allies Hacked . | . . . . . . . Hacks Repelled . | . . . . . . . Allies | -11 -10 -10 -10 -9 -8 -7 -------- Run | Yrd Mat Min Exi Min Mat Fac Total Allies 2 | . . . . 1 1 . Largest Group 2 | . . . . 1 2 . Highest-Rated Group 41 | . . . . 31 41 . Highest-Rated Ally 31 | . . . . 31 31 . Total Orders . | . . . . . . . Ally Attacks 15 | . . . . . 15 . Total Damage 230 | . . . . . 230 . Kills 1 | . . . . . 1 . Allies Corrupted . | . . . . . . . Allies Melted . | . . . . . . . Intel | -11 -10 -10 -10 -9 -8 -7 ------- Run | Yrd Mat Min Exi Min Mat Fac Active Infowar (turns) 1225 | . . . . 16 . 1209 Sensors 638 | . . . . . . 638 Seismic 693 | . . . . . . 693 ECM 306 | . . . . 16 . 290 Robot Analysis Total . | . . . . . . . Derelict Logs Recovered . | . . . . . . . Drone Launches . | . . . . . . . Drone Recoveries . | . . . . . . . Exploration | -11 -10 -10 -10 -9 -8 -7 ------------- Run | Yrd Mat Min Exi Min Mat Fac Turns Passed 2387 | 75 106 130 636 54 52 1334 Spaces Moved 3209 | 34 119 112 433 87 118 2306 Core 235 | 34 71 . . . . 130 Treads . | . . . . . . . Legs . | . . . . . . . Wheels . | . . . . . . . Hover . | . . . . . . . Flight 2974 | . 48 112 433 87 118 2176 Fastest Speed 32 | 50 40 40 37 37 34 32 Average Speed 50 | 50 50 40 135 37 34 35 Slowest Speed 197 | 50 150 40 197 37 37 114 Overloaded Moves . | . . . . . . . Propulsion Burnouts . | . . . . . . . Robots Hopped 9 | . . 1 . . 3 5 Potential Cave-ins 3 | . . . . . . 3 Cave-ins Triggered 1 | . . . . . . 1 Exploration Rate (%) 29 | 3 26 30 63 15 24 42 Regions Visited 6 Branch Regions 3 Pre-discovered Areas 1 | . . . 1 . . . Known Exits Taken . | . . . . . . . Unknown Exits Taken 6 | 1 1 1 1 1 1 . Scrap Searched 3 | . . 1 . 2 . . Spaces Dug 36 | . . . . . . 36 Terrain Destroyed 112 | 10 5 . . . . 97 Melee 36 | . . . . . . 36 Projectile . | . . . . . . . AOE 76 | 10 5 . . . . 61 Terrain Rammed . | . . . . . . . Walls Destroyed . | . . . . . . . Machines Disabled . | . . . . . . . Actions | -11 -10 -10 -10 -9 -8 -7 --------- Run | Yrd Mat Min Exi Min Mat Fac Total 3801 | 78 153 195 483 105 126 2661 Wait 388 | 29 17 84 47 12 10 189 Move 3185 | 33 118 109 432 86 111 2296 Hop 9 | . . 1 . . 3 5 Pick Up 7 | 2 1 1 . . . 3 Fast Attach 23 | 1 4 . 2 2 . 14 Attach 11 | . . . 1 1 . 9 Detach 14 | . 1 . 1 1 . 11 Swap 4 | . . . . . 1 3 Drop 17 | . 2 . . 2 1 12 Fire 36 | 13 10 . . 1 . 12 Melee 71 | . . . . . . 71 Ram . | . . . . . . . Kick . | . . . . . . . Crush . | . . . . . . . Escape Stasis 36 | . . . . . . 36 Rewire . | . . . . . . . Trap . | . . . . . . . Miscellaneous . | . . . . . . . Route ------- -11/Scrapyard -10/Materials -10/Mines (discovered 2 exits: [*Mat] / *Exi) -10/Exiles -9/Mines -8/Materials -7/Factory (discovered 3 exits: *Fac x2 / [*Low]) History --------- Turn | Location | Event 6 | -11/Scrapyard | Discovered new exit (range 15) 76 | -11/Scrapyard | Entered Materials 139 | -10/Materials | Met 8R-AWN 170 | -10/Materials | Discovered new exit (range 12) 182 | -10/Materials | Entered Mines 183 | -10/Mines | Followed 8R-AWN into the Mines 260 | -10/Mines | Found a damaged Exp. Sensor Array with a note attached 261 | -10/Mines | Found Prototype Device 296 | -10/Mines | Discovered new exit (range 12) 300 | -10/Mines | Build established: Mutant 306 | -10/Mines | Discovered new exit (range 5) 312 | -10/Mines | Entered Exiles 322 | -10/Exiles | Welcomed by 8R-AWN 329 | -10/Exiles | Met EX-HEX 403 | -10/Exiles | Met EX-BIN 410 | -10/Exiles | Aligned with FarCom system 411 | -10/Exiles | Given EX-Vault access code 422 | -10/Exiles | Opened EX-Vault 427 | -10/Exiles | Found Supersonic Drone Bay 430 | -10/Exiles | Found Firepult 473 | -10/Exiles | Warned to stay clear of 0b10 Research branches 528 | -10/Exiles | Met EX-DEC 698 | -10/Exiles | Learned about 8R-AWN's background 867 | -10/Exiles | Learned location of Zion (-7) 930 | -10/Exiles | Discovered new exit (range 10) 948 | -10/Exiles | Stole two prototypes: Supersonic Drone Bay, Firepult 948 | -10/Exiles | Entered Mines 964 | -9/Mines | Met a Derelict bent on vengeance 965 | -9/Mines | Discovered new exit (range 16) 982 | -9/Mines | Received a Mining Laser from a helpful Derelict 1002 | -9/Mines | Entered Materials 1002 | -8/Materials | Accompanied by 1 ally 1002 | -8/Materials | Evolved 4 slots: Utility x4 1048 | -8/Materials | Discovered new exit (range 16) 1054 | -8/Materials | Entered Factory 1054 | -7/Factory | Evolved 2 slots: Utility x2 1056 | -7/Factory | FarCom data flow suspended 1122 | -7/Factory | Identified Exp. Sensor Array 1460 | -7/Factory | Discovered new exit (range 11) 1739 | -7/Factory | Discovered new exit (range 15) 1797 | -7/Factory | Build established: Sprinter 1843 | -7/Factory | Crushed by falling debris 2152 | -7/Factory | Discovered new exit (range 4) 2153 | -7/Factory | Identified exit to Factory 2332 | -7/Factory | Lost 4 parts (1p2n1u) 2335 | -7/Factory | Core integrity fell below 50% 2371 | -7/Factory | Fabricated Hacking Suite? 2388 | -7/Factory | Self-destructed Last Messages --------------- ETC: 24 Slug penetrates Wall. K-01 Serf cleans the Power Conduit. Critical hit (Burn: +37). W-25 Informer sends out distress signal. ALERT: Potential suspicious activity detected, Programmers report to Factory Zone 4Z. Critical hit (Burn: +37). >> FABRICATOR: Completed Hacking Suite? W-25 Informer suffers critical hit (Smash). Destroyed Visual Processing Unit. Destroyed Imp. Hover Unit. W-25 Informer system corrupted by crushing effect. W-25 Informer system terminally corrupted. Lgt. Deuterium Engine fried. Acquired 34 matter. P-60 Hacker destroyed. K-01 Serf collects debris. System corrupted: Substantial component data lost. Acquired 35 matter. Map ----- +----------------------------------------------------+ | #???# #?# # #???????????????????????? | | +##### ### "" # #???????????????????????? | | T" + #???????????????????????? | | ############ # #???????????????????????? | | #??????????# # #???????????????????????? | | #??????????## ##? #???????????????????????? | | #???????????# #??######???????????????????????? | | #???????????# #???????????????????????????????? | | +???????????# #???????????????????????????????? | | #??????????## ##??????????????????????????????? | | #??????????# ###########????????????????????? | | #??????????# #????????????????????? | | ############# < ! #????????????????????? | | ! # g #????????????????????? | | " #######gg #????????????????????? | | """"""""" #######?????# ######???????????????? | | #???????????# # ? ?###???##????? | | """"""""" #???????????# # * """ # ? #????? | | #???????????# # """ # """ !#????? | | """"""""" #???????????# # """ # """ #????? | | #???????????# # # "S #????? | | """"""""" #???????????# # """ !# """ +????? | | #???###?##### # """ # "" #????? | | """"""""" #??# !# # """ # +????? | | #??# """ #[! # #! "" #????? | | ##########+##??# """"" [#@! ##+####### "" #????? | | ?????????# #???# """"" #[| #???# """ #????? | | ?????????# #???# + k #???# """ #????? | | ????###### #???#""" # #???# """ #????? | | ##### ## #???#"R !# ### #???# #????? | | # < #???#""" # #?# #######+####????? | | # ### ####???# + #?# ####### | | # #?## ##??????######+#### #?# w + | | # #??# #???########## #??# #?# # ! ! | | # #??# #???# !## #??# ########## # | | # #??# #???# ## ##?# # # # | | # #??# #???# """ # ### # """ # + """" | | # #??# #???# """ + T + """ + # """" | | #??# #???# """ # ##### """ #### # """" | | ####+############## ##???#] #??## # """" | | # #??######## #?##?# """ #???# ####### | | # """ + ## #?# """ #???# ????? | | + """ #??####### #??# """ #???######???? | | ### """ #?????## ##?# ] #????????????? | | ??# #?????# # ############????????????? | | ?##"#######????## # #?????????????????????? | | ##"#######?????# # ###########????????????? | | #?????# # #????????????? | | !!! #?????## ! "" #????????????? | | !!! #??????# """#????????????? | +----------------------------------------------------+ Best States ------------- Heat Dissipation 34 Energy Generation 15 Energy Capacity 150 Matter Stores 279 Matter Capacity 300 Sight Range 16 Robot Scan Range 20 Terrain Scan Density 10 ECM Strength 1 Evasion (%) 63 Authchip Count 1 Item Schematics ----------------- Hacking Suite | -8/Materials | Hacked Robot Schematics ------------------ None Fabricated ------------ Hacking Suite | x1 | -7/Factory | Authchip Repaired ---------- Nothing Alien Tech Used ----------------- None Achievements -------------- None Challenges ------------ None Game ------ Seed LatentJammingTreads Manual? 0 Play Time 00:27:42 Cumulative 207.5 hours Start 2025.05.26 @ 21:03:39 End 2025.05.26 @ 21:40:34 Sessions 1 Manual Loads 0 Difficulty Rogue Special Mode None Game No. 209 Rogue 25 Adventurer 173 Explorer 11 Win Type - Total 54 Types 14/1/15/2/12/0/4/1/0/5 Lore% 48 Gallery% 49 Achievement% 67 Wizard Run 0 Options --------- Layout 0 ASCII 0 Keyboard 0 Movement Numpad Keybinds 0 Fullscreen 2 Font 12/Smallcaps Map View 83x54 Zoom Use 0% Tactical HUD 0 Map Filters NONE Filters NONE Steam X RUN: 7d571ab7-ceb2-4735-b8ab-8f7ce2929bb9